Workbook

Sheet паспорт
A1: ПАТ "УКРТРАНСГАЗ" | G1: ПАСПОРТ ФІЗИКО-ХІМІЧНИХ ПОКАЗНИКІВ ПРИРОДНОГО ГАЗУ № 860
A2: Філія "УМГ "Черкаситрансгаз" | G2: переданого Кременчуцьким ЛВУМГ та прийнятого ПАТ "Полтавагаз", ПАТ "Кременчукгаз", ДП "Укравтогаз", ТОВ "Кременчукавтогаз"
A3: Кременчуцьке ЛВУМГ | G3: Маршрут № 860
A4: Вимірювальна хіміко-аналітична лабораторія
A5: Кременчуцького промислового майданчика
A6: Свідоцтво № 0612 КФ від 30.12.15р. чинне до 20.06.19р. | K6: по газопроводу "Диканька-Кременчук-Кривий Ріг" | V6: за період з | X6: 2017-03-01 | Z6: по | AA6: 2017-03-31
A8: Число місяця | B8: Компонентний склад, % мол. | N8: Фізико-хімічні показники газу обчислені на основі компонентного складу, 101,325 кПа | X8: Температура точки роси за вологою (Р = 3.92 МПа), °С | Y8: Температура точки роси за вуглеводнями, °С | Z8: Вміст сірководню, г/м3 | AA8: Вміст меркаптанової сірки, г/м3 | AB8: Вміст механічних домішок, г/м3
N9: Густина абсолютна, кг/м3,при 20 °С, | O9: Температура вимірювання/згоряння при 20/25°С
B10: метан, С1 | C10: етан, С2 | D10: пропан, С3 | E10: ізо-бутан, і-С4 | F10: н-бутан, н-С4 | G10: нео-пентан, нео-С5 | H10: ізо-пентан, і-С5 | I10: н-пентан, н-С5 | J10: гексани та вищі, С6+ | K10: кисень, О2 | L10: азот, N2 | M10: діоксид вуглецю, CО2 | O10: Теплота згоряння нижча | R10: Теплота згоряння вища | U10: Число Воббе вище
O11: ккал/м³ | P11: МДж/м³ | Q11: кВт⋅год/м³ | R11: ккал/м³ | S11: МДж/м³ | T11: кВт⋅год/м³ | U11: ккал/м³ | V11: МДж/м³ | W11: кВт⋅год/м³
A12: 1 | O12: =P12*238.8459 -> 8244.960468 | P12: 34.52 | Q12: =P12/3.6 -> 9.588888889 | R12: =S12*238.8459 -> 9133.467216 | S12: 38.24 | T12: =S12/3.6 -> 10.62222222 | AC12: =SUM(B12:M12)+$K$43+$N$43 -> 0
A13: 2 | O13: =P13*238.8459 -> 8244.960468 | P13: 34.52 | Q13: 9.588888889 | R13: =S13*238.8459 -> 9133.467216 | S13: 38.24 | T13: 10.62222222 | AC13: 0
A14: 3 | O14: 8244.960468 | P14: 34.52 | Q14: 9.588888889 | R14: 9133.467216 | S14: 38.24 | T14: 10.62222222 | AC14: 0 | AD14: =IF(AC14=100,"ОК"," ") -> 
A15: 4 | O15: 8244.960468 | P15: 34.52 | Q15: 9.588888889 | R15: 9133.467216 | S15: 38.24 | T15: 10.62222222 | AC15: 0 | AD15: =IF(AC15=100,"ОК"," ") -> 
A16: 5 | O16: 8244.960468 | P16: 34.52 | Q16: 9.588888889 | R16: 9133.467216 | S16: 38.24 | T16: 10.62222222 | AC16: 0
A17: 6 | B17: 90.8497 | C17: 4.3572 | D17: 1.2078 | E17: 0.1296 | F17: 0.2208 | G17: 0.0047 | H17: 0.055 | I17: 0.0468 | J17: 0.0672 | K17: 0.0008 | L17: 1.3536 | M17: 1.7068 | N17: 0.7453 | O17: 8276.010435 | P17: 34.65 | Q17: 9.625 | R17: 9166.905642 | S17: 38.38 | T17: 10.66111111 | U17: 11653 | V17: 48.79 | W17: =V17/3.6 -> 13.55277778 | X17: -9.1 | AC17: 100 | AD17: ОК
A18: 7 | O18: 8276.010435 | P18: 34.65 | Q18: 9.625 | R18: 9166.905642 | S18: 38.38 | T18: 10.66111111 | AC18: 0
A19: 8 | O19: 8276.010435 | P19: 34.65 | Q19: 9.625 | R19: 9166.905642 | S19: 38.38 | T19: 10.66111111 | AC19: 0
A20: 9 | O20: 8276.010435 | P20: 34.65 | Q20: 9.625 | R20: 9166.905642 | S20: 38.38 | T20: 10.66111111 | AC20: 0
A21: 10 | O21: 8276.010435 | P21: 34.65 | Q21: =P21/3.6 -> 9.625 | R21: 9166.905642 | S21: 38.38 | T21: =S21/3.6 -> 10.66111111 | AC21: 0
A22: 11 | O22: 8276.010435 | P22: 34.65 | Q22: 9.625 | R22: 9166.905642 | S22: 38.38 | T22: 10.66111111 | AC22: 0
A23: 12 | O23: 8276.010435 | P23: 34.65 | Q23: 9.625 | R23: 9166.905642 | S23: 38.38 | T23: 10.66111111 | AC23: 0
A24: 13 | B24: 90.8172 | C24: 4.351 | D24: 1.1801 | E24: 0.1277 | F24: 0.2171 | G24: 0.0047 | H24: 0.0532 | I24: 0.0443 | J24: 0.0539 | K24: 0.001 | L24: 1.4166 | M24: 1.7332 | N24: 0.7449 | O24: 8256.902763 | P24: 34.57 | Q24: 9.602777778 | R24: 9147.79797 | S24: 38.3 | T24: 10.63888889 | U24: 11631 | V24: 48.7 | W24: 13.52777778 | X24: -9.2 | AC24: 100 | AD24: ОК
A25: 14 | O25: 8256.902763 | P25: 34.57 | Q25: 9.602777778 | R25: 9147.79797 | S25: 38.3 | T25: 10.63888889 | AC25: 0
A26: 15 | O26: 8256.902763 | P26: 34.57 | Q26: 9.602777778 | R26: 9147.79797 | S26: 38.3 | T26: 10.63888889 | AC26: 0
A27: 16 | O27: 8256.902763 | P27: 34.57 | Q27: =P27/3.6 -> 9.602777778 | R27: 9147.79797 | S27: 38.3 | T27: =S27/3.6 -> 10.63888889 | AC27: 0
A28: 17 | O28: 8256.902763 | P28: 34.57 | Q28: 9.602777778 | R28: 9147.79797 | S28: 38.3 | T28: 10.63888889 | AC28: 0
A29: 18 | O29: 8256.902763 | P29: 34.57 | Q29: 9.602777778 | R29: 9147.79797 | S29: 38.3 | T29: 10.63888889 | AC29: 0
A30: 19 | O30: 8256.902763 | P30: 34.57 | Q30: 9.602777778 | R30: 9147.79797 | S30: 38.3 | T30: 10.63888889 | AC30: 0
A31: 20 | B31: 90.9701 | C31: 4.3233 | D31: 1.1174 | E31: 0.1239 | F31: 0.2077 | G31: 0.0046 | H31: 0.0523 | I31: 0.0431 | J31: 0.056 | K31: 0.001 | L31: 1.5593 | M31: 1.5413 | N31: 0.7423 | O31: 8249.737386 | P31: 34.54 | Q31: 9.594444444 | R31: 9138.244134 | S31: 38.26 | T31: 10.62777778 | U31: 11641 | V31: 48.74 | W31: 13.53888889 | X31: -9 | AC31: 100 | AD31: =IF(AC31=100,"ОК"," ") -> ОК
A32: 21 | O32: 8249.737386 | P32: 34.54 | Q32: 9.594444444 | R32: =S32*238.8459 -> 9138.244134 | S32: 38.26 | T32: =S32/3.6 -> 10.62777778 | AC32: 0
A33: 22 | O33: 8249.737386 | P33: 34.54 | Q33: 9.594444444 | R33: 9138.244134 | S33: 38.26 | T33: 10.62777778 | AC33: 0
A34: 23 | O34: 8249.737386 | P34: 34.54 | Q34: =P34/3.6 -> 9.594444444 | R34: 9138.244134 | S34: 38.26 | T34: 10.62777778 | AC34: 0 | AD34: =IF(AC34=100,"ОК"," ") -> 
A35: 24 | O35: 8249.737386 | P35: 34.54 | Q35: 9.594444444 | R35: 9138.244134 | S35: 38.26 | T35: 10.62777778 | AC35: 0
A36: 25 | O36: 8249.737386 | P36: 34.54 | Q36: 9.594444444 | R36: 9138.244134 | S36: 38.26 | T36: 10.62777778 | AC36: 0
A37: 26 | O37: 8249.737386 | P37: 34.54 | Q37: 9.594444444 | R37: 9138.244134 | S37: 38.26 | T37: 10.62777778 | AC37: 0
A38: 27 | B38: 90.7493 | C38: 4.3721 | D38: 1.2035 | E38: 0.1311 | F38: 0.2311 | G38: 0.0047 | H38: 0.0574 | I38: 0.0496 | J38: 0.0629 | K38: 0.0009 | L38: 1.3566 | M38: 1.7808 | N38: 0.7464 | O38: 8271.233517 | P38: 34.63 | Q38: 9.619444444 | R38: 9162.128724 | S38: 38.36 | T38: =S38/3.6 -> 10.65555556 | U38: 11639 | V38: 48.73 | W38: 13.53611111 | X38: -9.3 | Z38: 0.002 | AA38: 0.0023 | AB38: відсутні | AC38: 100 | AD38: ОК
A39: 28 | O39: 8271.233517 | P39: 34.63 | Q39: 9.619444444 | R39: 9162.128724 | S39: 38.36 | T39: 10.65555556 | AC39: 0
A40: 29 | O40: 8271.233517 | P40: 34.63 | Q40: =P40/3.6 -> 9.619444444 | R40: 9162.128724 | S40: 38.36 | T40: =S40/3.6 -> 10.65555556 | AC40: 0
A41: 30 | O41: 8271.233517 | P41: 34.63 | Q41: =P41/3.6 -> 9.619444444 | R41: 9162.128724 | S41: 38.36 | T41: =S41/3.6 -> 10.65555556 | AC41: 0
A42: 31 | O42: 8271.233517 | P42: 34.63 | Q42: =P42/3.6 -> 9.619444444 | R42: 9162.128724 | S42: 38.36 | T42: =S42/3.6 -> 10.65555556 | AC42: 0
A43: Рівень одоризації відповідає чинним нормативним документам | O43: =8259 -> 8259 | P43: =AVERAGE(P12:P42) -> 34.58290323 | Q43: =AVERAGE(Q12:Q42) -> 9.606362007 | R43: =9149 -> 9149 | S43: =AVERAGE(S12:S42) -> 38.30903226 | T43: =AVERAGE(T12:T42) -> 10.64139785
H44: Середньозважене значення теплоти згоряння:
B46: Головний інженер Кременчуцького ЛВУМГ | N46: Грицик О. М. | Z46: 2017-04-03
C47: Підрозділу підприємства, якому підпорядкована лабораторія | M47: прізвище | V47: підпис | Z47: дата
B48: Інженер-лаборант ВХАЛ | N48: Голованова Ж. К. | Z48: 2017-04-03
C49: Лабораторія, де здійснювалось вимірювання газу | M49: прізвище | V49: підпис | Z49: дата
B50: Провідний економіст із збуту | N50: Кривулькін І. В. | Z50: 2017-04-03
C51: Підрозділу, відповідального за облік газу за маршрутом | M51: прізвище | V51: підпис | Z51: дата

Sheet додаток
A2: Додаток до Паспорту фізико-хімічних показників природного газу № 860
A4: Область | B4: ГРС, прямий споживач | C4: Cередньозважене значення вищої теплоти згоряння
C5: МДж/м³ | D5: ккал/м³ | E5: кВт*год./м³
A6: Полтавська область | B6: ГРС Бутенки | C6: 38.30708508 | D6: 9149.490211 | E6: 10.64085697
B7: ГРС Сушки | C7: 38.3079355 | D7: 9149.693331 | E7: 10.64109319
B8: ГРС Козельщина | C8: 38.30793119 | D8: 9149.692302 | E8: 10.641092
B9: ГРС Нова Галещина | C9: 38.30767844 | D9: 9149.631935 | E9: 10.64102179
B10: ГРС Фрунзівка | C10: 38.30767844 | D10: 9149.631935 | E10: 10.64102179
B11: ГРС Глобине | C11: 38.30856669 | D11: 9149.844089 | E11: 10.64126853
B12: ГРС Погреби | C12: 38.30774415 | D12: 9149.647629 | E12: 10.64104004
B13: ГРС Бугаївка | C13: 38.30793048 | D13: 9149.692132 | E13: 10.6410918
B14: ГРС Потоки | C14: 38.30797318 | D14: 9149.702332 | E14: 10.64110366
B15: ГРС Кременчук (Північний промвузол | C15: 38.30319815 | D15: 9148.561835 | E15: 10.63977726
B16: ГРС Кременчук ( Місто) | C16: 38.30795478 | D16: 9149.697936 | E16: 10.64109855
B17: ДП "Укравтогаз" | C17: 38.30935599 | D17: 9150.03261 | E17: 10.64148778
B18: ТОВ "Кременчукавтогаз" | C18: 38.3090268 | D18: 9149.953985 | E18: 10.64139633
A19: Середньозважене значення вищої теплоти згоряння по маршруту № 860 | C19: 38.30545885 | D19: 9149.101793 | E19: 10.64040524
A23: Головний інженер Кременчуцького ЛВУМГ | D23: Грицик О. М. | F23: 2017-04-03
A24: Підрозділу підприємства, якому підпорядкована лабораторія | D24: прізвище | E24: підпис | F24: дата
A25: Інженер-лаборант ВХАЛ | D25: Голованова Ж. К. | F25: 2017-04-03
A26: Лабораторія, де здійснювалось вимірювання газу | D26: прізвище | E26: підпис | F26: дата
A27: Провідний економіст із збуту | D27: Кривулькін І. В. | F27: 2017-04-03
A28: Підрозділу, відповідального за облік газу за маршрутом | D28: прізвище | E28: підпис | F28: дата

Sheet variablesList (hidden)
A1: 3 | B1: x:\gaysin | C1: 10, 11, 24, 25, 127, 128, 132, 180, 207, 215 | D1: x:\
B2: x:\Illinci
B3: x:\Talne
